bitfinex-derivatives/quotes_SOLF0:USTF0_20241211
["timestamp","ask_amount","ask_price","bid_price","bid_amount"]
[1733924410333,16.34487062,226.63,226.58,2.2057]
[1733924410633,16.34487062,226.67,226.52,2.8]
[1733924410840,18.54937062,226.71,226.52,2.8]
[1733924411140,16.34487062,226.71,226.52,2.8]
[1733924411333,16.34487062,226.71,226.55,16.34487062]
[1733924411529,16.34487062,226.71,226.56,2.25368969]
[1733924411727,16.34487062,226.71,226.57,0.81068969]
[1733924412033,16.34487062,226.67,226.54,5.32925512]
[1733924412737,16.34487062,226.67,226.55,2.8]
[1733924412931,16.34487062,226.64,226.54,5.32925512]
[1733924413234,16.34487062,226.6,226.5,2.8]
[1733924413439,16.34487062,226.6,226.48,1.3054]
[1733924413639,16.34487062,226.6,226.49,0.81080253]
[1733924413836,16.34487062,226.6,226.48,1.3054]
[1733924414040,16.34487062,226.6,226.45,1.341]
[1733924414237,16.34487062,226.56,226.45,1.341]
[1733924414433,16.34487062,226.52,226.42,5.3283717]
[1733924414836,2.2064,226.51,226.42,5.3283717]
[1733924415132,16.34487062,226.52,226.37,2.8]
[1733924415332,2.8,226.54,226.36,1.3506]
[1733924415333,16.34487062,226.48,226.36,1.3506]
[1733924415536,16.34487062,226.44,226.3,2.8]
[1733924415931,16.34487062,226.44,226.34,2.2079]
[1733924416132,16.34487062,226.44,226.31,0.81134079]
[1733924416332,16.34487062,226.44,226.35,5.2436666]
[1733924416541,2.2072,226.43,226.35,5.2436666]
[1733924416940,16.34487062,226.44,226.31,2.8]
[1733924417135,26.79048132,226.43,226.31,2.8]
[1733924417337,26.79048132,226.39,226.28,2.656]
[1733924417538,26.79048132,226.39,226.28,1.3506]
[1733924417740,2.2079,226.36,226.27,2.2087]
[1733924417941,26.79048132,226.35,226.28,5.29302969]
[1733924418137,26.79048132,226.35,226.21,5.4109]
[1733924418339,29.59048132,226.38,226.15,2.8]
[1733924418340,26.79048132,226.3,226.15,2.8]
[1733924418640,26.79048132,226.3,226.01,45.88]
[1733924418641,2.8,226.29,226.2,5.41018138]
[1733924418844,26.79048132,226.26,226.2,5.41018138]
[1733924419345,26.79048132,226.3,226.2,5.41018138]
[1733924419543,26.79048132,226.3,226.27,2.2087]
[1733924419743,26.79048132,226.3,226.2,5.41018138]
[1733924420237,1.3054,226.37,225.88,45.9]
[1733924420238,26.79048132,226.21,225.88,45.9]
[1733924420440,2.8,226.2,226.0,26.79048132]
[1733924420640,26.79048132,226.17,226.08,5.30522195]
[1733924421248,2.2099,226.15,226.01,0.81206143]
[1733924421542,26.79048132,226.09,225.99,1.3746]
[1733924421738,26.79048132,226.09,225.99,2.2114]
[1733924421937,26.79048132,226.09,225.95,2.8]
[1733924422447,26.79048132,226.03,225.72,72.71048132]
[1733924422644,26.79048132,225.99,225.84,2.7772]
[1733924423142,2.8,226.02,225.87,5.31976103]
[1733924423143,26.79048132,225.95,225.87,5.31976103]
[1733924423438,26.79048132,225.91,225.82,5.22426318]
[1733924423840,26.79048132,225.87,225.66,26.79048132]
[1733924424144,26.79048132,225.83,225.72,5.35265474]
[1733924424340,26.79048132,225.79,225.72,5.35265474]
[1733924424738,26.79048132,225.79,225.63,2.6851]
[1733924424935,26.79048132,225.79,225.69,5.21568385]
[1733924425137,26.79048132,225.75,225.63,2.6851]
[1733924425339,26.79048132,225.75,225.57,3.0]
[1733924425537,26.79048132,225.79,225.59,26.79048132]
[1733924425740,26.79048132,225.79,225.58,4.1085]
[1733924425741,26.79048132,225.75,225.58,4.1085]
[1733924425948,26.79048132,225.83,225.67,7.17322229]
[1733924426344,26.79048132,225.87,225.67,7.17322229]
[1733924426542,26.79048132,225.87,225.77,2.2135]
[1733924426742,26.79048132,225.91,225.78,3.0]
[1733924427038,26.79048132,225.87,225.69,26.79048132]
[1733924427241,26.79048132,225.83,225.7,3.0]
[1733924427436,26.79048132,225.79,225.67,7.17322229]
[1733924427840,29.00398132,225.79,225.67,7.17322229]
[1733924428040,26.79048132,225.79,225.67,1.86877668]
[1733924428240,26.79048132,225.75,225.67,1.86877668]
[1733924429145,29.79048132,225.79,225.67,1.86877668]
[1733924429537,29.79048132,225.79,225.7,2.2142]
[1733924429941,29.79048132,225.79,225.67,1.86877668]
[1733924430142,26.79048132,225.75,225.67,1.86877668]
[1733924430656,2.2143,225.7,225.47,98.81818796]
[1733924430947,26.79048132,225.67,225.49,26.79048132]
[1733924431241,26.79048132,225.63,225.53,2.2159]
[1733924431650,26.79048132,225.63,225.48,2.21295807]
[1733924431944,5.6551,225.62,225.51,2.2161]
[1733924432150,5.6551,225.62,225.53,5.4115507]
[1733924432350,26.79048132,225.63,225.53,5.4115507]
[1733924432747,30.57048132,225.67,225.53,5.4115507]
[1733924432952,26.79048132,225.67,225.53,5.4115507]
[1733924433249,30.57048132,225.71,225.54,0.81412876]
[1733924433644,30.57048132,225.71,225.53,5.4115507]
[1733924433645,2.2143,225.7,225.53,5.4115507]
[1733924433850,26.79048132,225.71,225.53,5.4115507]
[1733924434047,26.79048132,225.75,225.56,26.79048132]
[1733924434351,26.79048132,225.79,225.6,26.79048132]
[1733924434550,1.4484,225.82,225.71,2.2141]
[1733924434850,29.00358132,225.83,225.66,3.78]
[1733924435046,29.00318132,225.87,225.76,2.2137]
[1733924435242,26.79048132,225.87,225.69,1.3796]
[1733924435448,3.78,225.89,225.76,26.79048132]
[1733924435449,5.25983607,225.89,225.76,26.79048132]
[1733924435748,26.79048132,225.97,225.74,5.43688301]
[1733924435944,26.79048132,225.93,225.74,5.43688301]
[1733924436151,73.77351,225.75,225.74,5.43688301]
[1733924436445,73.77351,225.75,225.74,7.65078301]
[1733924436446,54.13636031,225.75,225.74,7.65078301]
[1733924436849,26.79048132,225.93,225.74,5.43688301]
[1733924437049,26.79048132,225.97,225.77,26.79048132]
[1733924437252,26.79048132,225.97,225.74,5.43688301]
[1733924437253,26.79048132,226.01,225.81,26.79048132]
[1733924437557,1.4438,226.04,225.85,26.79048132]
[1733924437848,1.4438,226.04,225.89,26.79048132]
[1733924438054,1.4438,226.04,225.9,3.78]
[1733924438749,1.4438,226.04,225.94,5.29549893]
[1733924438948,1.4147,226.08,225.94,5.29549893]
[1733924439151,1.4147,226.08,225.97,26.79048132]
[1733924439454,1.4147,226.08,225.98,3.78]
[1733924439751,1.4147,226.08,225.94,5.29549893]
[1733924440149,1.4147,226.08,225.97,26.79048132]
[1733924440951,1.3967,226.15,226.01,26.79048132]
[1733924441254,1.3967,226.15,226.02,3.78]
[1733924441559,2.21,226.14,226.02,3.78]
[1733924441758,1.3967,226.15,226.02,3.78]
[1733924442253,1.3967,226.15,225.94,26.79048132]
[1733924442453,1.3967,226.15,225.97,3.78]
[1733924442950,26.79048132,226.14,225.94,26.79048132]
[1733924443253,26.79048132,226.14,225.94,30.57048132]
[1733924443952,26.79048132,226.05,225.85,30.57048132]
[1733924444154,5.2158,226.04,225.85,30.57048132]
[1733924444352,5.2158,226.04,225.92,5.22178972]
[1733924444956,1.3967,226.15,225.93,30.57048132]
[1733924445457,1.3967,226.15,225.97,26.79048132]
[1733924445658,1.3967,226.15,226.01,26.79048132]
[1733924445853,1.3967,226.15,226.02,3.78]
[1733924446152,1.3967,226.15,226.05,26.79048132]
[1733924446456,1.4048,226.17,226.05,26.79048132]
[1733924446653,1.4375,226.24,226.09,26.79048132]
[1733924446855,1.4375,226.24,226.13,26.79048132]
[1733924447055,1.4375,226.24,226.14,3.78]
[1733924447357,5.32436242,226.34,226.21,2.2092]
[1733924447561,1.4375,226.33,226.17,26.79048132]
[1733924448351,1.4375,226.33,226.21,26.79048132]
[1733924448558,1.4375,226.33,226.22,3.78]
[1733924449553,1.4375,226.33,226.23,3.76]
[1733924450453,2.6759,226.37,226.27,2.2087]
[1733924450651,2.6759,226.37,226.23,3.76]
[1733924451052,2.6759,226.37,226.28,2.2085]
[1733924451257,2.6759,226.37,226.25,26.79048132]
[1733924452851,1.3122,226.37,226.25,26.79048132]
[1733924453053,1.3467,226.47,226.29,26.79048132]
[1733924453261,2.7582,226.47,226.3,3.76]
[1733924454057,2.2072,226.43,226.33,2.2081]
[1733924454257,2.7582,226.47,226.31,3.76]
[1733924454258,26.79048132,226.46,226.31,3.76]
[1733924454464,26.79048132,226.46,226.25,26.79048132]
[1733924454665,26.79048132,226.42,226.26,3.76]
[1733924454959,3.76,226.41,226.24,3.76]
[1733924455161,2.2081,226.33,226.24,2.2089]
[1733924455362,26.79048132,226.38,226.24,3.76]
[1733924455865,26.79048132,226.46,226.25,26.79048132]
[1733924456061,2.20799293,226.45,226.25,26.79048132]
[1733924456261,2.20799293,226.45,226.27,2.2086]
[1733924456262,26.79048132,226.42,226.27,2.2086]
[1733924456465,26.79048132,226.42,226.25,26.79048132]
[1733924456966,2.2078,226.37,226.29,2.2085]
[1733924457262,2.2078,226.37,226.24,3.76]
[1733924457263,3.76,226.4,226.24,3.76]
[1733924457467,26.79048132,226.38,226.23,3.76]
[1733924457962,2.20799293,226.45,226.25,26.79048132]
[1733924457963,26.79048132,226.42,226.25,26.79048132]
[1733924458163,2.20799293,226.45,226.29,26.79048132]
[1733924458369,2.20799293,226.45,226.3,3.76]
[1733924458659,2.20799293,226.45,226.33,2.208]
[1733924458660,2.2073,226.42,226.33,2.208]
[1733924458867,2.20799293,226.45,226.3,3.76]
[1733924459458,26.79048132,226.42,226.25,26.79048132]
[1733924459664,26.79048132,226.42,226.27,3.76]
[1733924460164,26.79048132,226.42,226.22,5.25277703]
[1733924460564,26.79048132,226.38,226.22,5.25277703]
[1733924460864,26.79048132,226.34,226.22,5.25277703]
[1733924461061,26.79048132,226.34,226.15,3.76]
[1733924461062,4.238,226.33,226.15,3.76]
[1733924461263,4.238,226.33,226.21,5.18011879]
[1733924461568,26.79048132,226.42,226.25,26.79048132]
[1733924461864,4.1402,226.44,226.29,26.79048132]
[1733924462066,4.1402,226.44,226.3,3.76]
[1733924462367,4.1402,226.44,226.3,3.78]
[1733924462563,26.79048132,226.42,226.21,5.18011879]
[1733924462763,26.79048132,226.42,226.22,4.59163388]
[1733924463368,4.1402,226.44,226.28,26.79048132]
[1733924463578,4.1402,226.44,226.29,3.78]
[1733924463873,4.1402,226.44,226.23,0.81163388]
[1733924463874,26.79048132,226.42,226.24,26.79048132]
[1733924464173,2.2083,226.32,226.24,2.209]
[1733924464372,26.79048132,226.38,226.21,8.96011879]
[1733924464571,26.79048132,226.42,226.24,26.79048132]
[1733924464766,7.9202,226.44,226.24,26.79048132]
[1733924464966,7.9202,226.44,226.28,26.79048132]
[1733924464967,4.1402,226.44,226.28,26.79048132]
[1733924465168,4.1402,226.44,226.32,26.79048132]
[1733924465367,4.1402,226.44,226.38,2.2076]
[1733924465568,4.1402,226.44,226.33,3.78]
[1733924465773,2.208,226.34,226.27,2.2086]
[1733924466069,26.79048132,226.42,226.24,3.78]
[1733924466070,30.57048132,226.42,226.24,3.78]
[1733924466370,30.57048132,226.42,226.25,0.81158061]
[1733924466869,26.79048132,226.38,226.22,3.78]
[1733924467170,26.79048132,226.34,226.21,5.18011879]
[1733924467364,26.79048132,226.3,226.11,30.57048132]
[1733924467677,4.2295,226.29,226.17,5.18935981]
[1733924467864,4.2295,226.29,226.12,0.81199148]
[1733924468266,4.2295,226.29,226.12,2.2102]
[1733924468468,4.2295,226.29,226.15,5.28637205]
[1733924468971,26.79048132,226.21,226.08,5.27417926]
[1733924469270,26.79048132,226.26,226.01,26.79048132]
[1733924469271,26.79048132,226.17,226.01,26.79048132]
[1733924469472,5.1975,226.16,226.02,0.8123486]
[1733924469771,5.1975,226.16,226.02,6.24555912]
[1733924469772,26.79048132,226.14,226.02,6.24555912]
[1733924469968,3.78,226.15,226.02,5.43321052]
[1733924469969,5.177,226.15,226.02,5.43321052]
[1733924470365,2.2103,226.11,226.02,5.43321052]
[1733924470569,5.177,226.15,226.0,1.82649697]
[1733924470570,26.79048132,226.1,226.0,1.82649697]
[1733924470876,26.79048132,226.14,225.83,72.73048132]
[1733924470877,26.79048132,226.06,225.86,26.79048132]
[1733924471176,2.2116,225.98,225.88,2.2125]
[1733924471363,3.78,226.05,225.89,0.81270669]
[1733924471570,26.79048132,226.02,225.87,2.21366272]
[1733924471770,1.3428,226.01,225.87,2.21366272]
[1733924471970,1.3428,226.01,225.89,5.36156729]
[1733924472169,2.2116,225.98,225.89,7.57396729]
[1733924472475,1.3668,226.0,225.87,2.21366272]
[1733924472677,1.3668,226.0,225.88,5.18590869]
[1733924472870,1.3668,226.0,225.89,2.21346673]
[1733924473471,1.3668,226.0,225.89,5.99346673]
[1733924473667,1.3668,226.0,225.89,32.78394805]
[1733924473871,1.3428,226.01,225.97,2.2116]
[1733924474069,26.79048132,226.1,225.89,32.78394805]
[1733924474370,26.79048132,226.06,225.89,2.21346673]
[1733924474877,3.78,226.09,225.88,5.18590869]
[1733924474878,2.2119,225.95,225.88,5.18590869]
[1733924475074,30.57048132,226.02,225.88,5.18590869]
[1733924475473,26.79048132,225.98,225.79,92.64419524]
[1733924475674,26.79048132,225.94,225.79,65.85371392]
[1733924475873,26.79048132,225.9,225.79,5.19490422]
[1733924476175,2.213,225.84,225.79,5.19490422]
[1733924476373,26.79048132,225.9,225.7,3.78]
[1733924476677,26.79048132,225.86,225.51,13.22]
[1733924476870,26.79048132,225.78,225.56,26.79048132]
[1733924477074,7.8248,225.77,225.71,0.81351056]
[1733924477376,26.79048132,225.74,225.61,5.33420863]
[1733924477578,26.79048132,225.65,225.41,47.79115417]
[1733924477773,3.78,225.64,225.48,2.2164]
[1733924477976,3.78,225.64,225.44,26.79048132]
[1733924477977,26.79048132,225.61,225.44,26.79048132]
[1733924478378,3.78,225.64,225.42,3.78]
[1733924478379,2.2157,225.56,225.42,3.78]
[1733924478676,30.57048132,225.57,225.4,26.79048132]
[1733924478973,30.57048132,225.57,225.41,2.2181802]
[1733924479168,1.3554,225.6,225.41,2.2181802]
[1733924479370,1.3554,225.6,225.47,5.3591005]
[1733924479577,1.3554,225.6,225.52,2.216]
[1733924479774,1.3554,225.6,225.48,3.8]
[1733924480073,29.00448132,225.73,225.6,2.2152]
[1733924480273,3.8,225.78,225.56,26.79048132]
[1733924480274,1.3915,225.71,225.56,26.79048132]
[1733924480676,26.79048132,225.77,225.56,26.79048132]
[1733924480876,1.3915,225.77,225.6,26.79048132]
[1733924481083,1.3915,225.77,225.64,26.79048132]
[1733924481278,1.4109,225.82,225.65,3.8]
[1733924481581,1.3915,225.93,225.76,26.79048132]
[1733924481779,1.3915,225.93,225.8,26.79048132]
[1733924481977,1.3915,225.93,225.81,3.8]
[1733924482276,26.79048132,225.99,225.81,3.8]
[1733924482478,1.3756,226.0,225.81,3.8]
[1733924482679,0.72185854,225.99,225.86,2.2127]
[1733924482874,1.3756,226.0,225.81,3.8]
[1733924483378,1.3756,226.0,225.78,3.8]
[1733924483379,26.79048132,225.96,225.78,3.8]
[1733924483578,26.79048132,225.92,225.78,3.8]
[1733924483773,2.2124,225.9,225.78,6.0135]
[1733924483977,26.79048132,225.92,225.78,3.8]
[1733924484181,3.8,225.95,225.81,5.37073144]
[1733924484479,26.79048132,225.96,225.81,5.37073144]
[1733924484678,31.96608132,226.0,225.81,5.37073144]
[1733924485775,5.1756,226.0,225.81,5.37073144]
[1733924486078,2.2127,225.87,225.78,3.8]
[1733924486775,2.2124,225.9,225.78,6.0134]
[1733924486976,26.79048132,225.96,225.79,5.21182713]
[1733924487274,3.8,225.98,225.8,26.79048132]
[1733924487476,3.8,225.98,225.87,2.2126]
[1733924487880,3.8,225.98,225.85,3.8]
[1733924488071,2.2118,225.96,225.85,6.0128]
[1733924488477,3.8,225.98,225.85,3.8]
[1733924488679,28.16608132,226.0,225.8,26.79048132]
[1733924488879,2.2117,225.97,225.85,6.0128]
[1733924489278,2.2117,225.97,225.85,3.8]
[1733924489477,28.16608132,226.0,225.85,3.8]
[1733924489478,1.3756,226.0,225.85,3.8]
[1733924489784,1.3756,226.0,225.79,5.21182713]
[1733924489785,26.79048132,225.96,225.79,5.21182713]
[1733924489981,1.3756,226.0,225.79,5.21182713]
[1733924489982,2.2123,225.91,225.79,7.42512713]
[1733924490183,26.79048132,225.92,225.79,5.21182713]
[1733924490781,26.79048132,225.92,225.72,26.79048132]
[1733924490977,26.79048132,225.92,225.73,3.8]
[1733924491485,2.2126,225.88,225.78,7.6042945]
[1733924491784,26.79048132,225.92,225.78,5.3907945]
[1733924491985,26.79048132,225.96,225.78,5.3907945]
[1733924492378,1.3756,226.0,225.8,26.79048132]
[1733924492577,1.3756,226.0,225.81,3.78]
[1733924493180,3.587,226.0,225.84,26.79048132]
[1733924493488,1.3756,226.0,225.81,3.78]
[1733924493677,1.3756,226.0,225.82,3.78]
[1733924493877,2.2117,225.97,225.87,2.2126]
[1733924494075,2.2117,225.97,225.83,3.78]
[1733924494480,1.3756,226.0,225.83,3.78]
[1733924494481,1.3756,226.0,225.84,26.79048132]
[1733924495182,1.3756,226.0,225.88,26.79048132]
[1733924495383,102.4830521,226.09,225.88,26.79048132]
[1733924495583,102.4830521,226.09,225.92,26.79048132]
[1733924495584,2.21219361,226.02,225.92,26.79048132]
[1733924495785,2.21219361,226.02,225.93,3.78]
[1733924496082,2.21219361,226.02,225.88,26.79048132]
[1733924496284,2.21219361,226.02,225.89,3.78]
[1733924496484,30.57048132,226.05,225.86,1.3931]
[1733924496679,30.57048132,226.05,225.87,3.78]
[1733924496880,26.79048132,225.97,225.84,3.78]
[1733924497182,2.2121,225.93,225.84,5.9929]
[1733924497386,1.3094,225.96,225.84,5.9929]
[1733924497789,1.3094,225.96,225.84,3.78]
[1733924497987,26.79048132,226.05,225.84,30.57048132]
[1733924498191,1.3094,226.04,225.84,30.57048132]
[1733924498881,26.79048132,226.01,225.84,3.78]
[1733924499281,2.2116,225.98,225.91,2.2122]
[1733924499484,2.2116,225.98,225.8,26.79048132]
[1733924499485,1.3094,226.04,225.89,3.78]
[1733924500187,3.52139787,226.04,225.89,3.78]
[1733924500692,2.2113,226.01,225.91,2.2122]
[1733924500889,3.52139787,226.04,225.89,3.78]
[1733924501387,2.21209573,226.03,225.89,3.78]
[1733924501783,2.21209573,226.03,225.96,2.2117]
[1733924502082,2.21209573,226.03,225.89,3.78]
[1733924502482,2.21209573,226.03,225.94,2.2118]
[1733924502483,4.42319573,226.03,225.94,2.2118]
[1733924502689,2.21209573,226.03,225.93,5.2408392]
[1733924504099,2.21209573,226.03,225.95,26.79048132]
[1733924504297,1.3622,226.14,225.99,26.79048132]
[1733924504496,1.3622,226.14,226.0,3.78]
[1733924504692,1.3622,226.14,226.03,2.211]
[1733924504990,1.3622,226.14,226.0,3.78]
[1733924505194,2.21111749,226.13,226.02,26.79048132]
[1733924505999,2.21111749,226.13,226.08,2.2106]
[1733924506201,2.21111749,226.13,226.02,26.79048132]
[1733924506893,2.21111749,226.13,226.08,2.2106]
[1733924507294,2.21111749,226.13,226.02,26.79048132]
[1733924507493,2.21111749,226.13,226.11,2.2102]
[1733924507802,2.21111749,226.13,226.08,3.78]
[1733924507998,2.21111749,226.13,226.12,2.2102]
[1733924508402,1.3131,226.26,226.1,26.79048132]
[1733924508598,1.3131,226.26,226.19,2.2094]
[1733924508599,3.522,226.26,226.19,2.2094]
[1733924508802,3.78,226.3,226.17,3.78]
[1733924509105,1.4397,226.34,226.17,3.78]
[1733924509405,6.68992063,226.34,226.17,3.78]
[1733924509703,1.4397,226.34,226.19,26.79048132]
[1733924509996,2.2081,226.33,226.25,2.2089]
[1733924510203,1.4397,226.34,226.24,3.78]
[1733924511200,4.4117,226.57,226.24,3.78]
[1733924511898,4.1466,226.48,226.35,2.2079]
[1733924512098,4.1466,226.48,226.32,3.78]
[1733924512404,4.1466,226.48,226.27,5.3077597]
[1733924512405,3.78,226.47,226.27,5.3077597]
[1733924512599,26.79048132,226.43,226.27,5.3077597]
[1733924512901,26.79048132,226.39,226.17,3.78]
[1733924513098,30.57048132,226.39,226.17,3.78]
[1733924513597,26.79048132,226.35,226.16,26.79048132]
[1733924513792,4.1963,226.34,226.16,26.79048132]
[1733924513993,2.2087,226.28,226.16,29.00018132]
[1733924514194,4.1963,226.34,226.2,5.24045211]
[1733924515595,26.79048132,226.32,226.13,3.78]
[1733924515796,3.78,226.31,226.12,26.79048132]
[1733924516002,3.78,226.31,226.16,5.18066138]
[1733924516299,2.2093,226.21,226.16,5.18066138]
[1733924516503,3.78,226.31,226.16,5.18066138]
[1733924516800,3.78,226.31,226.16,31.9711427]
[1733924516996,4.1963,226.34,226.16,31.9711427]
[1733924517399,2.2085,226.29,226.22,2.2092]
[1733924517594,2.2085,226.29,226.2,3.78]
[1733924517801,4.1963,226.34,226.2,30.57048132]
[1733924518695,4.1963,226.34,226.23,2.209]
[1733924518696,2.2082,226.32,226.23,2.209]
[1733924519098,4.1963,226.34,226.23,2.209]
[1733924519299,4.1963,226.34,226.16,31.9711427]
[1733924519502,4.1963,226.34,226.18,3.78]
[1733924520004,5.3079243,226.4,226.23,26.79048132]
[1733924520207,1.382,226.39,226.23,26.79048132]
[1733924520910,1.382,226.39,226.21,3.78]
[1733924520911,2.2081,226.34,226.21,3.78]
[1733924521202,26.79048132,226.35,226.16,31.9711427]
[1733924521401,30.57048132,226.38,226.16,5.18066138]
[1733924521402,26.79048132,226.31,226.16,5.18066138]
[1733924521609,1.3217,226.3,226.16,31.9711427]
[1733924522104,1.3217,226.3,226.2,2.2094]
[1733924522403,1.3217,226.3,226.21,3.62]
[1733924523005,2.2089,226.25,226.21,3.62]
[1733924523204,1.3217,226.3,226.16,31.9711427]
[1733924523404,1.3217,226.3,226.17,3.62]
[1733924523710,28.11218132,226.3,226.17,3.62]
[1733924524009,28.11218132,226.3,226.15,5.42211955]
[1733924524607,2.2098,226.16,226.08,29.00098132]
[1733924524804,3.62,226.25,226.09,3.62]
[1733924525010,1.4281,226.24,226.09,3.62]
[1733924525505,2.2097,226.17,226.11,2.2103]
[1733924525711,1.4281,226.24,226.09,3.62]
[1733924526117,26.79048132,226.22,226.04,26.79048132]
[1733924526411,1.4172,226.21,226.05,3.62]
[1733924526711,26.79048132,226.18,226.07,5.36337773]
[1733924526912,1.4172,226.21,226.07,5.36337773]
[1733924527209,1.4281,226.24,226.12,26.79048132]
[1733924527407,1.4463,226.29,226.16,26.79048132]
[1733924527611,1.4463,226.29,226.17,3.62]
[1733924528012,3.62,226.36,226.2,26.79048132]
[1733924528203,3.62,226.36,226.17,3.62]
[1733924528204,6.407,226.36,226.17,3.62]
[1733924528409,2.2089,226.25,226.17,3.62]
[1733924528703,26.79048132,226.34,226.17,3.62]
[1733924528908,11.58182849,226.36,226.17,3.62]
[1733924528909,26.79048132,226.3,226.17,3.62]
[1733924529109,3.62,226.29,226.12,3.62]
[1733924529309,3.62,226.29,226.15,5.2252034]
[1733924529610,7.96182849,226.36,226.2,2.2094]
[1733924529611,2.2087,226.28,226.2,2.2094]
[1733924529811,30.41048132,226.34,226.2,2.2094]
[1733924530008,30.41048132,226.34,226.19,3.62]
[1733924530709,2.2085,226.29,226.21,2.2092]
[1733924530907,2.2085,226.29,226.19,3.62]
[1733924531306,2.2085,226.29,226.21,2.2093]
[1733924531514,2.2085,226.3,226.19,3.62]
[1733924531809,30.41048132,226.34,226.19,3.62]
[1733924532015,30.41048132,226.34,226.15,5.2252034]
[1733924532016,2.2089,226.26,226.15,5.2252034]
[1733924532213,3.62,226.27,226.15,5.2252034]
[1733924532905,3.62,226.32,226.15,5.2252034]
[1733924533304,3.62,226.32,226.16,26.79048132]
[1733924533710,2.2089,226.26,226.16,26.79048132]
[1733924533916,26.79048132,226.3,226.15,5.2252034]
[1733924534407,26.79048132,226.3,226.17,2.2096]
[1733924534408,2.2089,226.25,226.17,2.2096]
[1733924534615,3.62,226.32,226.16,26.79048132]
[1733924534804,26.79048132,226.35,226.16,26.79048132]
[1733924535907,26.79048132,226.31,226.15,5.2252034]
[1733924536216,26.79048132,226.23,226.06,3.62]
[1733924536411,26.79048132,226.19,226.06,3.62]
[1733924536716,2.2103,226.11,226.04,2.2109]
[1733924537015,26.79048132,226.19,226.01,26.79048132]
[1733924537313,26.79048132,226.19,226.07,5.39743258]
[1733924537511,4.1254,226.22,226.07,5.39743258]
[1733924537811,2.2098,226.17,226.11,2.2103]
[1733924538220,4.1254,226.22,226.07,9.01743258]
[1733924539220,26.79048132,226.19,226.07,5.39743258]
[1733924539412,2.2107,226.07,226.0,2.2113]
[1733924539614,3.62,226.14,225.97,30.41048132]
[1733924540310,2.2103,226.11,225.97,30.41048132]
[1733924540512,26.79048132,226.19,226.01,26.79048132]
[1733924540811,2.21,226.14,226.06,2.2107]
[1733924541112,2.21,226.14,225.94,26.79048132]
[1733924541113,3.62,226.13,225.94,26.79048132]
[1733924541310,3.62,226.12,225.95,3.62]
[1733924541517,2.2108,226.06,225.95,3.62]
[1733924542620,2.2104,226.11,226.01,5.28349257]
[1733924542813,3.62,226.17,226.02,3.62]
[1733924543015,26.79048132,226.19,226.02,30.41048132]
[1733924543215,2.2098,226.17,226.06,26.79048132]
[1733924543415,1.3995,226.21,226.06,26.79048132]
[1733924544116,1.3995,226.21,226.02,4.056]
[1733924544117,26.79048132,226.31,226.1,26.79048132]
[1733924544313,26.79048132,226.31,226.02,17.346]
[1733924544314,2.2088,226.27,226.14,26.79048132]
[1733924544520,4.1928,226.34,226.18,26.79048132]
[1733924544716,4.1928,226.34,226.25,2.2089]
[1733924544917,6.4009,226.34,226.19,3.62]
[1733924545125,2.7933,226.34,226.22,26.79048132]
[1733924545319,2.7933,226.34,226.25,2.2088]
[1733924545514,2.7933,226.34,226.22,26.79048132]
[1733924545915,2.7933,226.34,226.19,3.62]
[1733924546218,33.20378132,226.34,226.19,3.62]
[1733924546524,1.3735,226.33,226.19,3.62]
[1733924547217,1.3735,226.33,226.16,32.17178541]
[1733924547427,26.79048132,226.26,226.09,3.62]
[1733924547723,30.41048132,226.26,226.14,5.2988479]
[1733924547924,3.62,226.26,226.14,5.2988479]
[1733924548119,30.41048132,226.26,226.14,5.2988479]
[1733924548321,2.2095,226.19,226.14,5.2988479]
[1733924548526,30.41048132,226.26,226.14,5.2988479]
[1733924549026,3.62,226.26,226.14,5.2988479]
[1733924549215,1.3735,226.33,226.14,5.2988479]
[1733924549420,2.2089,226.25,226.18,2.2096]
[1733924549623,1.3735,226.33,226.17,3.62]
[1733924549824,1.3735,226.33,226.17,30.41048132]
[1733924550624,2.2085,226.29,226.22,2.2091]